[Event "*** Titled Tuesday Blitz"]
[Site "Chess.com"]
[Date "2019.01.01"]
[Round "7"]
[White "GadimbayliA"]
[Black "Diwi89"]
[Result "1-0"]
[WhiteElo "2782"]
[BlackElo "2768"]
[TimeControl "180+2"]
[EndTime "14:39:27 PST"]
[Termination "GadimbayliA won by resignation"]

1. e4 {[%clk 0:03:01.9]} 1... c5 {[%clk 0:02:59.4]} 2. Nf3 {[%clk 0:03:02.6]}
2... Nc6 {[%clk 0:02:59.9]} 3. Bb5 {[%clk 0:03:02.8]} 3... g6 {[%clk 0:02:58.7]}
4. Bxc6 {[%clk 0:03:02.3]} 4... bxc6 {[%clk 0:02:58.6]} 5. d4 {[%clk 0:03:03.1]}
5... Bg7 {[%clk 0:02:42]} 6. dxc5 {[%clk 0:03:03.5]} 6... Qa5+ {[%clk
0:02:41.3]} 7. Nbd2 {[%clk 0:03:04.6]} 7... Ba6 {[%clk 0:02:41.8]} 8. Rb1 {[%clk
0:03:05.2]} 8... Qxc5 {[%clk 0:02:41.6]} 9. b4 {[%clk 0:03:05.7]} 9... Qb6
{[%clk 0:02:42.2]} 10. c4 {[%clk 0:03:06.8]} 10... Nf6 {[%clk 0:02:41.7]} 11.
O-O {[%clk 0:03:06]} 11... d6 {[%clk 0:02:40.9]} 12. Bb2 {[%clk 0:02:58.7]}
12... O-O {[%clk 0:02:40.1]} 13. Qa4 {[%clk 0:02:50.6]} 13... Nh5 {[%clk
0:02:34.6]} 14. Bxg7 {[%clk 0:02:43.7]} 14... Kxg7 {[%clk 0:02:36.5]} 15. g3
{[%clk 0:02:37.2]} 15... Nf6 {[%clk 0:02:37.6]} 16. Kg2 {[%clk 0:02:28.3]} 16...
Bb7 {[%clk 0:02:24.2]} 17. c5 {[%clk 0:02:27.8]} 17... Qc7 {[%clk 0:02:24.9]}
18. Rfe1 {[%clk 0:02:26.7]} 18... Rfd8 {[%clk 0:02:21.7]} 19. Nc4 {[%clk
0:02:17.7]} 19... d5 {[%clk 0:02:16.9]} 20. exd5 {[%clk 0:02:06.7]} 20... cxd5
{[%clk 0:02:18.2]} 21. Nce5 {[%clk 0:02:07.8]} 21... d4 {[%clk 0:02:19.3]} 22.
c6 {[%clk 0:02:08.7]} 22... Bc8 {[%clk 0:02:20.7]} 23. b5 {[%clk 0:02:08.8]}
23... Bf5 {[%clk 0:02:15.9]} 24. Rbd1 {[%clk 0:02:05.7]} 24... d3 {[%clk
0:02:17.3]} 25. Qc4 {[%clk 0:01:59.7]} 25... Be6 {[%clk 0:02:06.8]} 26. Qc3
{[%clk 0:01:59.9]} 26... Bxa2 {[%clk 0:02:01.5]} 27. Nxd3 {[%clk 0:01:57.3]}
27... Bd5 {[%clk 0:01:56.6]} 28. Nf4 {[%clk 0:01:58.2]} 28... Bxf3+ {[%clk
0:01:55.5]} 29. Qxf3 {[%clk 0:01:53.9]} 29... e5 {[%clk 0:01:54.7]} 30. Nd5
{[%clk 0:01:53.3]} 30... Nxd5 {[%clk 0:01:48.9]} 31. Rxd5 {[%clk 0:01:55.2]}
31... Rxd5 {[%clk 0:01:45.3]} 32. Qxd5 {[%clk 0:01:56.9]} 32... Re8 {[%clk
0:01:46.2]} 33. Qc5 {[%clk 0:01:41.3]} 33... Re6 {[%clk 0:01:44.5]} 34. Rd1
{[%clk 0:01:40.7]} 34... Re7 {[%clk 0:01:30.5]} 35. Rd6 {[%clk 0:01:28]} 35...
h5 {[%clk 0:01:27.7]} 36. h4 {[%clk 0:01:27.7]} 36... Kg8 {[%clk 0:01:18.7]} 37.
Qd5 {[%clk 0:01:22.3]} 37... e4 {[%clk 0:00:46.5]} 38. Rxg6+ {[%clk 0:01:16.7]}
38... Kf8 {[%clk 0:00:46.7]} 39. Rd6 {[%clk 0:01:17.6]} 39... Ke8 {[%clk
0:00:47]} 40. Rh6 {[%clk 0:01:12]} 40... Re5 {[%clk 0:00:45.1]} 41. Qc4 {[%clk
0:00:58.2]} 41... e3 {[%clk 0:00:42]} 42. fxe3 {[%clk 0:00:57.3]} 42... Qa5
{[%clk 0:00:34.5]} 43. c7 {[%clk 0:00:51.5]} 43... Qd2+ {[%clk 0:00:34.3]} 44.
Kh3 {[%clk 0:00:45.7]} 44... Qd7+ {[%clk 0:00:34.9]} 45. Re6+ {[%clk 0:00:44.8]}
1-0

[Event "*** Titled Tuesday Blitz"]
[Site "Chess.com"]
[Date "2019.01.01"]
[Round "7"]
[White "rasmussvane"]
[Black "Matibar"]
[Result "0-1"]
[WhiteElo "2716"]
[BlackElo "2808"]
[TimeControl "180+2"]
[EndTime "14:39:28 PST"]
[Termination "Matibar won by checkmate"]

1. Nf3 {[%clk 0:03:01.9]} 1... b6 {[%clk 0:02:57.3]} 2. g3 {[%clk 0:03:01.3]}
2... Bb7 {[%clk 0:02:58.2]} 3. Bg2 {[%clk 0:03:02.9]} 3... g6 {[%clk 0:02:57.3]}
4. O-O {[%clk 0:03:03.6]} 4... Bg7 {[%clk 0:02:58.9]} 5. d4 {[%clk 0:03:05.1]}
5... Nf6 {[%clk 0:03:00.1]} 6. c4 {[%clk 0:03:06.6]} 6... e6 {[%clk 0:03:01.5]}
7. Qc2 {[%clk 0:03:01.3]} 7... O-O {[%clk 0:02:45.3]} 8. Nc3 {[%clk 0:03:02.2]}
8... d5 {[%clk 0:02:46.8]} 9. cxd5 {[%clk 0:03:03.6]} 9... exd5 {[%clk
0:02:47.8]} 10. Bg5 {[%clk 0:03:01.2]} 10... h6 {[%clk 0:02:38.1]} 11. Bxf6
{[%clk 0:03:01.7]} 11... Qxf6 {[%clk 0:02:40]} 12. Ne5 {[%clk 0:02:59.8]} 12...
Rd8 {[%clk 0:02:28.5]} 13. f4 {[%clk 0:02:59.7]} 13... c5 {[%clk 0:02:27]} 14.
dxc5 {[%clk 0:02:37.6]} 14... Na6 {[%clk 0:02:27.4]} 15. Rad1 {[%clk 0:02:26.8]}
15... Rac8 {[%clk 0:01:58.6]} 16. Nxd5 {[%clk 0:02:14.7]} 16... Rxd5 {[%clk
0:01:36.7]} 17. Bxd5 {[%clk 0:02:02.2]} 17... Nb4 {[%clk 0:01:22.5]} 18. Qb3
{[%clk 0:01:52.7]} 18... Nxd5 {[%clk 0:01:17.4]} 19. Rxd5 {[%clk 0:01:53.9]}
19... Bxd5 {[%clk 0:01:15.1]} 20. Qxd5 {[%clk 0:01:55.8]} 20... Rxc5 {[%clk
0:01:14.2]} 21. Qa8+ {[%clk 0:01:55.1]} 21... Kh7 {[%clk 0:01:15.3]} 22. Qe4
{[%clk 0:01:14]} 22... Qe6 {[%clk 0:01:09.4]} 23. b4 {[%clk 0:00:55.5]} 23...
Rd5 {[%clk 0:01:04.2]} 24. Rf3 {[%clk 0:00:30.3]} 24... f5 {[%clk 0:00:45.4]}
25. Qc2 {[%clk 0:00:21.6]} 25... Bxe5 {[%clk 0:00:46.9]} 26. fxe5 {[%clk
0:00:22.9]} 26... Qxe5 {[%clk 0:00:38.6]} 27. Rc3 {[%clk 0:00:15]} 27... Rd7
{[%clk 0:00:36.4]} 28. Rc8 {[%clk 0:00:16.2]} 28... Qd4+ {[%clk 0:00:35]} 29.
Kg2 {[%clk 0:00:16.4]} 29... Qxb4 {[%clk 0:00:35]} 30. a3 {[%clk 0:00:15.8]}
30... Qd4 {[%clk 0:00:25.7]} 31. Qa2 {[%clk 0:00:14.5]} 31... Qe4+ {[%clk
0:00:25]} 32. Kf2 {[%clk 0:00:14.1]} 32... Rg7 {[%clk 0:00:25.9]} 33. a4 {[%clk
0:00:10.9]} 33... f4 {[%clk 0:00:26.4]} 34. Qc4 {[%clk 0:00:09.8]} 34... fxg3+
{[%clk 0:00:26.3]} 35. hxg3 {[%clk 0:00:10.8]} 35... Qf5+ {[%clk 0:00:19.2]} 36.
Kg2 {[%clk 0:00:11.6]} 36... Rf7 {[%clk 0:00:18.6]} 37. Qc3 {[%clk 0:00:07.9]}
37... Qf1+ {[%clk 0:00:18.1]} 38. Kh2 {[%clk 0:00:09]} 38... Rf2# {[%clk
0:00:19.5]} 0-1

[Event "*** Titled Tuesday Blitz"]
[Site "Chess.com"]
[Date "2019.01.01"]
[Round "7"]
[White "Paralinch"]
[Black "Zhuu96"]
[Result "1-0"]
[WhiteElo "2924"]
[BlackElo "2875"]
[TimeControl "180+2"]
[EndTime "14:39:29 PST"]
[Termination "Paralinch won by resignation"]

1. e4 {[%clk 0:03:01.9]} 1... c5 {[%clk 0:03:01.2]} 2. Nf3 {[%clk 0:03:03.3]}
2... d6 {[%clk 0:03:02.6]} 3. d4 {[%clk 0:03:05]} 3... cxd4 {[%clk 0:03:03.9]}
4. Nxd4 {[%clk 0:03:06.9]} 4... Nf6 {[%clk 0:03:05.3]} 5. Nc3 {[%clk 0:03:08.6]}
5... a6 {[%clk 0:03:07]} 6. Be3 {[%clk 0:03:10.1]} 6... e6 {[%clk 0:03:07.9]} 7.
Be2 {[%clk 0:03:09.1]} 7... Be7 {[%clk 0:03:08.1]} 8. O-O {[%clk 0:03:10.2]}
8... O-O {[%clk 0:03:09.2]} 9. a4 {[%clk 0:03:11.2]} 9... Qc7 {[%clk 0:03:09.8]}
10. f4 {[%clk 0:03:11.9]} 10... b6 {[%clk 0:03:07.8]} 11. Bf3 {[%clk 0:03:07.8]}
11... Bb7 {[%clk 0:03:08.8]} 12. Kh1 {[%clk 0:03:08.7]} 12... Nbd7 {[%clk
0:03:09.7]} 13. Qe2 {[%clk 0:03:06.3]} 13... Nc5 {[%clk 0:03:10.4]} 14. Bg1
{[%clk 0:03:07.4]} 14... Rac8 {[%clk 0:03:10.8]} 15. Rad1 {[%clk 0:03:06.9]}
15... Rfe8 {[%clk 0:03:05.7]} 16. g4 {[%clk 0:03:06.8]} 16... Bf8 {[%clk
0:03:06.3]} 17. g5 {[%clk 0:03:07.5]} 17... Nfd7 {[%clk 0:03:05.9]} 18. Bg2
{[%clk 0:02:59.8]} 18... g6 {[%clk 0:03:00.6]} 19. Nb3 {[%clk 0:02:47.6]} 19...
Bg7 {[%clk 0:02:39]} 20. Nxc5 {[%clk 0:02:39.3]} 20... Nxc5 {[%clk 0:02:29.5]}
21. Bd4 {[%clk 0:02:39.5]} 21... Bxd4 {[%clk 0:02:28.4]} 22. Rxd4 {[%clk
0:02:41.4]} 22... e5 {[%clk 0:02:30.1]} 23. fxe5 {[%clk 0:02:39]} 23... dxe5
{[%clk 0:02:31.1]} 24. Rc4 {[%clk 0:02:17]} 24... Qe7 {[%clk 0:02:27.4]} 25. Nd5
{[%clk 0:02:14.6]} 25... Bxd5 {[%clk 0:02:25.5]} 26. exd5 {[%clk 0:02:16.5]}
26... Qxg5 {[%clk 0:02:26.7]} 27. b4 {[%clk 0:02:15.3]} 27... Nd7 {[%clk
0:02:21.1]} 28. Rc6 {[%clk 0:02:16.2]} 28... e4 {[%clk 0:02:13.3]} 29. Rxc8
{[%clk 0:02:01.1]} 29... Rxc8 {[%clk 0:02:14.3]} 30. Qxe4 {[%clk 0:02:02.6]}
30... Qe5 {[%clk 0:01:53.1]} 31. Qd3 {[%clk 0:01:53.6]} 31... Rc3 {[%clk
0:01:50.5]} 32. Qxa6 {[%clk 0:01:52.5]} 32... Rxc2 {[%clk 0:01:51.2]} 33. a5
{[%clk 0:01:43.4]} 33... Qd6 {[%clk 0:00:50.3]} 34. Qa8+ {[%clk 0:01:34.6]}
34... Kg7 {[%clk 0:00:51]} 35. a6 {[%clk 0:01:35.7]} 35... Nf6 {[%clk
0:00:46.6]} 36. Qb7 {[%clk 0:01:26.6]} 36... Rc7 {[%clk 0:00:43.7]} 37. Qxc7
{[%clk 0:00:42.7]} 37... Qxc7 {[%clk 0:00:44.6]} 38. d6 {[%clk 0:00:43.9]} 38...
Qa7 {[%clk 0:00:45.6]} 39. b5 {[%clk 0:00:37.7]} 39... Ne8 {[%clk 0:00:31.5]}
40. Rd1 {[%clk 0:00:38.4]} 40... Qd7 {[%clk 0:00:31]} 41. Bc6 {[%clk 0:00:35.6]}
41... Qg4 {[%clk 0:00:32]} 42. Rg1 {[%clk 0:00:36.4]} 42... Qa4 {[%clk
0:00:29.1]} 43. d7 {[%clk 0:00:36.2]} 43... Nf6 {[%clk 0:00:25.6]} 44. d8=Q
{[%clk 0:00:36.9]} 44... Ng4 {[%clk 0:00:25.3]} 45. Qd2 {[%clk 0:00:35.9]} 1-0

[Event "*** Titled Tuesday Blitz"]
[Site "Chess.com"]
[Date "2019.01.01"]
[Round "7"]
[White "Tulipaz"]
[Black "nochewycandy"]
[Result "0-1"]
[WhiteElo "2451"]
[BlackElo "2269"]
[TimeControl "180+2"]
[EndTime "14:39:29 PST"]
[Termination "nochewycandy won on time"]

1. c4 {[%clk 0:03:01.9]} 1... Nf6 {[%clk 0:02:57.3]} 2. g3 {[%clk 0:03:02.1]}
2... g6 {[%clk 0:02:56.5]} 3. Bg2 {[%clk 0:03:03.2]} 3... Bg7 {[%clk 0:02:58]}
4. Nc3 {[%clk 0:03:04.6]} 4... O-O {[%clk 0:02:59.9]} 5. e3 {[%clk 0:03:05.9]}
5... c6 {[%clk 0:02:59.2]} 6. Nge2 {[%clk 0:03:07.2]} 6... d5 {[%clk 0:03:00.3]}
7. cxd5 {[%clk 0:03:06.4]} 7... cxd5 {[%clk 0:03:01.1]} 8. d4 {[%clk 0:03:07.5]}
8... Nc6 {[%clk 0:02:58.7]} 9. O-O {[%clk 0:03:07.4]} 9... a6 {[%clk 0:02:50.9]}
10. Bd2 {[%clk 0:03:05.7]} 10... e6 {[%clk 0:02:49.4]} 11. Rc1 {[%clk
0:03:05.8]} 11... Bd7 {[%clk 0:02:47.5]} 12. Na4 {[%clk 0:03:00.3]} 12... Be8
{[%clk 0:02:42.8]} 13. Qb3 {[%clk 0:02:41.1]} 13... Ra7 {[%clk 0:02:37.4]} 14.
Rc2 {[%clk 0:02:12.5]} 14... e5 {[%clk 0:02:22.2]} 15. Rfc1 {[%clk 0:01:52.1]}
15... exd4 {[%clk 0:02:20.6]} 16. exd4 {[%clk 0:01:48.2]} 16... Ne4 {[%clk
0:02:21.2]} 17. Be3 {[%clk 0:01:41.4]} 17... Na5 {[%clk 0:01:48.3]} 18. Qb6
{[%clk 0:00:45.6]} 18... Bxa4 {[%clk 0:01:43.4]} 19. Qxa7 {[%clk 0:00:44.7]}
19... Bxc2 {[%clk 0:01:44.1]} 20. Rxc2 {[%clk 0:00:46.6]} 20... Re8 {[%clk
0:01:06]} 21. b3 {[%clk 0:00:28.5]} 21... Qd7 {[%clk 0:00:50.8]} 22. Qb6 {[%clk
0:00:21.6]} 22... Nc6 {[%clk 0:00:51.4]} 23. h3 {[%clk 0:00:21.3]} 23... h6
{[%clk 0:00:42.6]} 24. Kh2 {[%clk 0:00:21.8]} 24... Kh7 {[%clk 0:00:42.8]} 25.
a3 {[%clk 0:00:19.3]} 25... Qe7 {[%clk 0:00:39.7]} 26. b4 {[%clk 0:00:17.8]}
26... Qd7 {[%clk 0:00:33.4]} 27. a4 {[%clk 0:00:15.5]} 27... Re6 {[%clk
0:00:33.1]} 28. b5 {[%clk 0:00:11.1]} 28... Nxd4 {[%clk 0:00:27.6]} 29. Bxd4
{[%clk 0:00:09.5]} 29... Rxb6 {[%clk 0:00:28]} 30. Bxb6 {[%clk 0:00:10.7]} 30...
axb5 {[%clk 0:00:29.4]} 31. a5 {[%clk 0:00:11.5]} 31... Be5 {[%clk 0:00:28]} 32.
Nd4 {[%clk 0:00:09.7]} 32... h5 {[%clk 0:00:24.3]} 33. h4 {[%clk 0:00:09]} 33...
Qg4 {[%clk 0:00:22.5]} 34. Nf3 {[%clk 0:00:03.1]} 34... Bd6 {[%clk 0:00:15.5]}
35. Bd4 {[%clk 0:00:02.7]} 35... f6 {[%clk 0:00:14.1]} 0-1

[Event "*** Titled Tuesday Blitz"]
[Site "Chess.com"]
[Date "2019.01.01"]
[Round "7"]
[White "Zufi1811"]
[Black "Chessmatus"]
[Result "1-0"]
[WhiteElo "2418"]
[BlackElo "2192"]
[TimeControl "180+2"]
[EndTime "14:39:32 PST"]
[Termination "Zufi1811 won by resignation"]

1. e4 {[%clk 0:03:01.9]} 1... c5 {[%clk 0:02:59.7]} 2. Nf3 {[%clk 0:02:55.6]}
2... d6 {[%clk 0:03:00.9]} 3. d4 {[%clk 0:02:56.3]} 3... cxd4 {[%clk 0:03:02.1]}
4. Nxd4 {[%clk 0:02:58]} 4... Nf6 {[%clk 0:03:02.7]} 5. Nc3 {[%clk 0:02:59.5]}
5... a6 {[%clk 0:03:03.5]} 6. h3 {[%clk 0:03:01]} 6... e5 {[%clk 0:03:03.7]} 7.
Nb3 {[%clk 0:03:01.7]} 7... Be6 {[%clk 0:03:02.6]} 8. Be3 {[%clk 0:03:02.1]}
8... Be7 {[%clk 0:02:57.9]} 9. Qf3 {[%clk 0:03:02.1]} 9... b5 {[%clk 0:02:52.6]}
10. O-O-O {[%clk 0:03:02.5]} 10... O-O {[%clk 0:02:52.3]} 11. g4 {[%clk
0:03:03.3]} 11... b4 {[%clk 0:02:50.5]} 12. Nd5 {[%clk 0:03:03.5]} 12... Nxd5
{[%clk 0:02:48.5]} 13. exd5 {[%clk 0:03:05.4]} 13... Bc8 {[%clk 0:02:48.9]} 14.
Kb1 {[%clk 0:03:05.9]} 14... a5 {[%clk 0:02:49.2]} 15. Bd3 {[%clk 0:03:06.4]}
15... a4 {[%clk 0:02:47.4]} 16. Nd2 {[%clk 0:03:07.9]} 16... Ba6 {[%clk
0:02:48.3]} 17. Ne4 {[%clk 0:03:01.7]} 17... Nd7 {[%clk 0:02:43.6]} 18. g5
{[%clk 0:02:58.3]} 18... a3 {[%clk 0:01:45.8]} 19. b3 {[%clk 0:02:54.2]} 19...
Bxd3 {[%clk 0:01:46.4]} 20. cxd3 {[%clk 0:02:51.7]} 20... f5 {[%clk 0:01:47]}
21. gxf6 {[%clk 0:02:51.4]} 21... Nxf6 {[%clk 0:01:47.9]} 22. Ng5 {[%clk
0:02:51.8]} 22... Qc8 {[%clk 0:01:30.2]} 23. Rc1 {[%clk 0:02:38.7]} 23... Qb7
{[%clk 0:01:30.4]} 24. Rc6 {[%clk 0:02:36.9]} 24... e4 {[%clk 0:01:23.6]} 25.
Qf5 {[%clk 0:02:14.1]} 25... Qd7 {[%clk 0:01:03.9]} 26. Qxd7 {[%clk 0:02:09.2]}
26... Nxd7 {[%clk 0:01:02.5]} 27. Ne6 {[%clk 0:01:56.4]} 27... Rfc8 {[%clk
0:00:28.6]} 28. dxe4 {[%clk 0:01:37.1]} 28... Ne5 {[%clk 0:00:28.4]} 29. Rxc8+
{[%clk 0:01:31.5]} 29... Rxc8 {[%clk 0:00:28.3]} 30. Rc1 {[%clk 0:01:30.5]}
30... Rxc1+ {[%clk 0:00:27.3]} 31. Kxc1 {[%clk 0:01:32.4]} 31... Bf6 {[%clk
0:00:18.4]} 32. f4 {[%clk 0:01:22.3]} 32... Nd3+ {[%clk 0:00:18.3]} 33. Kd2
{[%clk 0:01:22.9]} 33... Nb2 {[%clk 0:00:17.2]} 34. Bd4 {[%clk 0:01:19.3]} 34...
Bh4 {[%clk 0:00:15.2]} 35. Nc7 {[%clk 0:00:55.8]} 35... Bg3 {[%clk 0:00:11.6]}
36. Be3 {[%clk 0:00:46.9]} 36... Bh4 {[%clk 0:00:04.9]} 37. Na6 {[%clk
0:00:44.7]} 37... Bf6 {[%clk 0:00:02.3]} 38. Nxb4 {[%clk 0:00:44.8]} 38... Kf7
{[%clk 0:00:02.8]} 39. Nc2 {[%clk 0:00:44.8]} 39... Be7 {[%clk 0:00:02.7]} 40.
Nxa3 {[%clk 0:00:45.5]} 40... Bd8 {[%clk 0:00:04.3]} 41. Bd4 {[%clk 0:00:42.9]}
41... Be7 {[%clk 0:00:06.2]} 42. Bxb2 {[%clk 0:00:42.2]} 1-0

[Event "*** Titled Tuesday Blitz"]
[Site "Chess.com"]
[Date "2019.01.01"]
[Round "7"]
[White "BrianWall"]
[Black "Grieve72"]
[Result "1-0"]
[WhiteElo "2213"]
[BlackElo "2325"]
[TimeControl "180+2"]
[EndTime "14:39:34 PST"]
[Termination "BrianWall won by resignation"]

1. e4 {[%clk 0:03:01.9]} 1... d6 {[%clk 0:03:00.7]} 2. d4 {[%clk 0:03:01.8]}
2... Nf6 {[%clk 0:03:02.1]} 3. Nc3 {[%clk 0:03:00.2]} 3... Nbd7 {[%clk
0:03:03.6]} 4. Nf3 {[%clk 0:02:58.4]} 4... e5 {[%clk 0:03:04.7]} 5. Be2 {[%clk
0:02:58.6]} 5... c6 {[%clk 0:03:03.8]} 6. Be3 {[%clk 0:02:58.3]} 6... Qc7 {[%clk
0:03:04]} 7. h3 {[%clk 0:02:58.5]} 7... Be7 {[%clk 0:03:04.2]} 8. Qd2 {[%clk
0:02:57.6]} 8... b5 {[%clk 0:03:02.4]} 9. Bd3 {[%clk 0:02:42.2]} 9... h6 {[%clk
0:02:57.4]} 10. Ne2 {[%clk 0:02:38]} 10... Nf8 {[%clk 0:02:48.4]} 11. c3 {[%clk
0:02:36.1]} 11... a5 {[%clk 0:02:36]} 12. a4 {[%clk 0:02:35.7]} 12... b4 {[%clk
0:02:20.3]} 13. Ng3 {[%clk 0:02:32.8]} 13... bxc3 {[%clk 0:02:02.7]} 14. bxc3
{[%clk 0:02:32.7]} 14... Ng6 {[%clk 0:01:56.6]} 15. O-O {[%clk 0:02:32.5]} 15...
O-O {[%clk 0:01:53.7]} 16. Rab1 {[%clk 0:02:32.5]} 16... Be6 {[%clk 0:01:48.8]}
17. Nf5 {[%clk 0:02:26.3]} 17... Rfb8 {[%clk 0:01:04.8]} 18. Bxh6 {[%clk
0:02:22.4]} 18... gxh6 {[%clk 0:00:33.2]} 19. Qxh6 {[%clk 0:02:21.6]} 19... Bxf5
{[%clk 0:00:34.5]} 20. exf5 {[%clk 0:02:20]} 20... Nf4 {[%clk 0:00:33.8]} 21.
dxe5 {[%clk 0:02:11.5]} 21... dxe5 {[%clk 0:00:32.4]} 22. Bc4 {[%clk 0:02:12.1]}
22... Qd6 {[%clk 0:00:15.2]} 23. g3 {[%clk 0:02:07.6]} 23... Ne4 {[%clk
0:00:04.8]} 24. f6 {[%clk 0:01:42.4]} 24... Qxf6 {[%clk 0:00:02.3]} 25. Qxf6
{[%clk 0:01:42.3]} 25... Bxf6 {[%clk 0:00:04]} 26. gxf4 {[%clk 0:01:42.6]} 26...
exf4 {[%clk 0:00:05.9]} 27. Nd4 {[%clk 0:01:34.9]} 27... Rxb1 {[%clk 0:00:05]}
28. Rxb1 {[%clk 0:01:33.4]} 28... Nd2 {[%clk 0:00:05.8]} 29. Bxf7+ {[%clk
0:01:26.1]} 29... Kxf7 {[%clk 0:00:06.2]} 30. Rb7+ {[%clk 0:01:27.4]} 30... Kg6
{[%clk 0:00:06.4]} 31. Nxc6 {[%clk 0:01:29.3]} 31... f3 {[%clk 0:00:04.6]} 32.
Kh2 {[%clk 0:01:27.7]} 32... Nf1+ {[%clk 0:00:03.5]} 33. Kg1 {[%clk 0:01:26.5]}
33... Rc8 {[%clk 0:00:03.4]} 34. Rb6 {[%clk 0:01:25.2]} 34... Nd2 {[%clk
0:00:02.5]} 35. Ne7+ {[%clk 0:01:25.1]} 35... Kf7 {[%clk 0:00:03.8]} 36. Nxc8
{[%clk 0:01:26.7]} 36... Bxc3 {[%clk 0:00:04.8]} 37. Nd6+ {[%clk 0:01:20.7]}
37... Ke7 {[%clk 0:00:06.1]} 38. Nf5+ {[%clk 0:01:15.1]} 38... Kd7 {[%clk
0:00:06.4]} 39. h4 {[%clk 0:01:14.5]} 39... Ne4 {[%clk 0:00:04.1]} 40. h5 {[%clk
0:01:12.2]} 40... Nf6 {[%clk 0:00:03.4]} 41. h6 {[%clk 0:01:09.2]} 41... Kc7
{[%clk 0:00:03.6]} 42. Re6 {[%clk 0:01:04.2]} 42... Kd7 {[%clk 0:00:04.1]} 43.
Rd6+ {[%clk 0:01:04.7]} 43... Kc7 {[%clk 0:00:05]} 44. Ra6 {[%clk 0:01:06.6]}
44... Kb7 {[%clk 0:00:06.1]} 45. Re6 {[%clk 0:01:05.4]} 45... Kc8 {[%clk
0:00:06.9]} 46. Re7 {[%clk 0:01:02.7]} 46... Ng8 {[%clk 0:00:07]} 47. Re8+
{[%clk 0:01:01.4]} 47... Kd7 {[%clk 0:00:08.3]} 48. Rxg8 {[%clk 0:01:03]} 1-0

[Event "*** Titled Tuesday Blitz"]
[Site "Chess.com"]
[Date "2019.01.01"]
[Round "7"]
[White "JoakimVonAnd"]
[Black "AnonymousBread"]
[Result "1-0"]
[WhiteElo "2354"]
[BlackElo "2522"]
[TimeControl "180+2"]
[EndTime "14:39:35 PST"]
[Termination "JoakimVonAnd won on time"]

1. d4 {[%clk 0:03:01.9]} 1... Nf6 {[%clk 0:03:00.5]} 2. c4 {[%clk 0:03:01.1]}
2... g6 {[%clk 0:03:01.5]} 3. Nc3 {[%clk 0:03:01.9]} 3... Bg7 {[%clk 0:03:02]}
4. e4 {[%clk 0:03:03.2]} 4... d6 {[%clk 0:03:03.5]} 5. h3 {[%clk 0:03:03]} 5...
O-O {[%clk 0:03:05]} 6. Be3 {[%clk 0:03:04.2]} 6... e5 {[%clk 0:03:06.5]} 7. d5
{[%clk 0:03:04.7]} 7... Nh5 {[%clk 0:03:07.8]} 8. g3 {[%clk 0:03:03.3]} 8... Qe8
{[%clk 0:03:07.8]} 9. Be2 {[%clk 0:03:02.4]} 9... Nf6 {[%clk 0:02:56.1]} 10. g4
{[%clk 0:03:00.8]} 10... a5 {[%clk 0:02:57.1]} 11. Nf3 {[%clk 0:03:01.6]} 11...
Na6 {[%clk 0:02:58.7]} 12. Nd2 {[%clk 0:03:00.4]} 12... Nc5 {[%clk 0:02:59.8]}
13. h4 {[%clk 0:03:01.5]} 13... b6 {[%clk 0:02:56.8]} 14. a3 {[%clk 0:03:02.2]}
14... Nfd7 {[%clk 0:02:54.9]} 15. b4 {[%clk 0:03:00.3]} 15... axb4 {[%clk
0:02:56.8]} 16. axb4 {[%clk 0:03:02.1]} 16... Rxa1 {[%clk 0:02:58.2]} 17. Qxa1
{[%clk 0:03:03.5]} 17... Na6 {[%clk 0:03:00.1]} 18. Qb2 {[%clk 0:03:00.9]} 18...
f5 {[%clk 0:02:53.5]} 19. gxf5 {[%clk 0:03:01.6]} 19... gxf5 {[%clk 0:02:55.4]}
20. exf5 {[%clk 0:03:03]} 20... e4 {[%clk 0:02:56.4]} 21. Rg1 {[%clk 0:02:54.7]}
21... Kh8 {[%clk 0:02:57.5]} 22. Rxg7 {[%clk 0:02:52.6]} 22... Kxg7 {[%clk
0:02:59.4]} 23. Ncxe4+ {[%clk 0:02:53.3]} 23... Ne5 {[%clk 0:03:00.7]} 24. f4
{[%clk 0:02:46.3]} 24... Bxf5 {[%clk 0:03:01.8]} 25. Ng3 {[%clk 0:02:42]} 25...
Qg6 {[%clk 0:02:41.3]} 26. Ndf1 {[%clk 0:02:24.6]} 26... Nxb4 {[%clk 0:02:13.6]}
27. fxe5 {[%clk 0:02:01.1]} 27... Nc2+ {[%clk 0:02:06]} 28. Kd2 {[%clk
0:02:00.7]} 28... Nxe3 {[%clk 0:01:55.5]} 29. e6+ {[%clk 0:01:35.7]} 29... Kg8
{[%clk 0:01:53.8]} 30. Kxe3 {[%clk 0:01:36.9]} 30... Bg4 {[%clk 0:01:46.7]} 31.
Ne4 {[%clk 0:01:22.6]} 31... Bf5 {[%clk 0:01:06.4]} 32. Nfg3 {[%clk 0:00:57.9]}
32... Qh6+ {[%clk 0:00:42.6]} 33. Kd3 {[%clk 0:00:58.6]} 33... Qxh4 {[%clk
0:00:15.3]} 34. Nxf5 {[%clk 0:00:19.8]} 34... Rxf5 {[%clk 0:00:17.2]} 35. Qc1
{[%clk 0:00:18.5]} 35... Re5 {[%clk 0:00:12.9]} 36. Qe3 {[%clk 0:00:19.6]} 36...
Qh1 {[%clk 0:00:08.4]} 37. Qg3+ {[%clk 0:00:17.1]} 37... Kf8 {[%clk 0:00:06.6]}
38. Qf4+ {[%clk 0:00:17.8]} 1-0